bitfinex-derivatives/quotes_BTCF0:USTF0_20251108
["timestamp","ask_amount","ask_price","bid_price","bid_amount"]
[1762611829995,0.57511011,101810.0,101800.0,0.06795]
[1762611830384,0.20466241,101810.0,101800.0,0.1662264]
[1762611830584,0.56546241,101810.0,101800.0,0.06795]
[1762611831194,0.56546241,101810.0,101800.0,0.1642264]
[1762611831390,0.56546241,101810.0,101800.0,0.21419012]
[1762611831589,0.56546241,101810.0,101800.0,0.05995]
[1762611831790,0.57541745,101810.0,101800.0,0.01975]
[1762611832191,0.57541745,101810.0,101800.0,0.04193]
[1762611832392,0.57541745,101810.0,101800.0,0.01975]
[1762611832792,0.57541745,101810.0,101800.0,0.04193]
[1762611832988,0.57541745,101810.0,101800.0,0.06395]
[1762611833397,0.57541745,101810.0,101800.0,0.1622264]
[1762611833596,0.57541745,101810.0,101800.0,0.06395]
[1762611834192,0.57541745,101810.0,101800.0,0.06295]
[1762611834600,0.57541745,101810.0,101800.0,0.05895]
[1762611834790,0.57541745,101810.0,101800.0,0.06195]
[1762611834988,0.57541745,101810.0,101800.0,0.06095]
[1762611835295,0.21461745,101810.0,101800.0,0.30946652]
[1762611835598,0.57541745,101810.0,101800.0,0.21219012]
[1762611835795,0.57541745,101810.0,101800.0,0.06395]
[1762611836001,0.57541745,101810.0,101800.0,0.04193]
[1762611836292,0.72908595,101810.0,101800.0,0.006]
[1762611836792,0.0982764,101800.0,101790.0,0.11872084]
[1762611836990,0.4590764,101800.0,101790.0,0.11872084]
[1762611837187,0.57200508,101800.0,101790.0,0.11872084]
[1762611837390,0.57200508,101800.0,101790.0,0.15363084]
[1762611837591,0.57200508,101800.0,101790.0,0.17654084]
[1762611838493,0.57200508,101800.0,101790.0,0.17954084]
[1762611838693,0.21120508,101800.0,101790.0,0.27882684]
[1762611838888,0.57200508,101800.0,101790.0,0.27882684]
[1762611839395,0.21120508,101800.0,101790.0,0.27882684]
[1762611840296,0.21120508,101800.0,101790.0,0.39740066]
[1762611840500,0.21120508,101800.0,101790.0,0.39840066]
[1762611840796,0.21120508,101800.0,101790.0,0.30011466]
[1762611840990,0.21120508,101800.0,101790.0,0.39840066]
[1762611841185,0.21120508,101800.0,101790.0,0.39640066]
[1762611841386,0.21120508,101800.0,101790.0,0.39840066]
[1762611841784,0.21120508,101800.0,101790.0,0.27982684]
[1762611842807,0.21120508,101800.0,101790.0,0.18154084]
[1762611843401,0.21120508,101800.0,101790.0,0.13650084]
[1762611843604,0.57200508,101800.0,101790.0,0.13650084]
[1762611843995,0.60709976,101800.0,101790.0,0.13650084]
[1762611844397,0.60709976,101800.0,101790.0,0.01792702]
[1762611844599,0.60709976,101800.0,101790.0,0.00514702]
[1762611844802,0.66004475,101800.0,101790.0,0.01792702]
[1762611845300,0.66004475,101800.0,101790.0,0.00514702]
[1762611845502,0.66004475,101800.0,101790.0,0.01692702]
[1762611845993,0.66004475,101800.0,101790.0,0.00314702]
[1762611847099,0.0982957,101780.0,101770.0,0.05871]
[1762611847298,0.4590957,101780.0,101770.0,0.05871]
[1762611847498,0.56447652,101780.0,101770.0,0.05871]
[1762611847801,0.56447652,101780.0,101770.0,0.1570153]
[1762611848195,0.56447652,101780.0,101770.0,0.1590153]
[1762611848404,0.0982957,101780.0,101770.0,0.66804611]
[1762611848602,0.0982957,101780.0,101770.0,0.30724611]
[1762611848799,0.0982957,101780.0,101770.0,0.67104611]
[1762611849196,0.0982957,101780.0,101770.0,0.31024611]
[1762611849503,0.4590957,101780.0,101770.0,0.31024611]
[1762611849701,0.0982957,101780.0,101770.0,0.31024611]
[1762611849891,0.4590957,101780.0,101770.0,0.21194081]
[1762611850090,0.4590957,101780.0,101770.0,0.31024611]
[1762611850091,0.5649642,101780.0,101770.0,0.31024611]
[1762611850400,0.0982957,101780.0,101770.0,0.31024611]
[1762611851198,0.0982957,101780.0,101770.0,0.21194081]
[1762611851704,0.56761969,101780.0,101770.0,0.21194081]
[1762611853310,0.56761969,101780.0,101770.0,0.31024611]
[1762611853696,0.20681969,101780.0,101770.0,0.31024611]
[1762611853896,0.10852399,101780.0,101770.0,0.67104611]
[1762611854096,0.20681969,101780.0,101770.0,0.69745766]
[1762611854504,0.0982957,101780.0,101770.0,0.69745766]
[1762611854901,0.45923902,101790.0,101780.0,0.05782]
[1762611855205,0.5631616,101790.0,101780.0,0.20605081]
[1762611856102,0.5631616,101790.0,101780.0,0.30534651]
[1762611856301,0.2023616,101790.0,101780.0,0.30534651]
[1762611856506,0.00014702,101790.0,101780.0,0.30534651]
[1762611856698,0.09843302,101790.0,101780.0,0.20805081]
[1762611857202,0.57329159,101790.0,101780.0,0.20805081]
[1762611857601,0.57329159,101790.0,101780.0,0.21005081]
[1762611857799,0.21249159,101790.0,101780.0,0.21005081]
[1762611858306,0.21249159,101790.0,101780.0,0.20705081]
[1762611858507,0.57329159,101790.0,101780.0,0.21005081]
[1762611859502,0.57329159,101790.0,101780.0,0.06182]
[1762611859708,0.57329159,101790.0,101780.0,0.03891]
[1762611860007,0.57329159,101790.0,101780.0,0.01678]
[1762611860395,0.57329159,101790.0,101780.0,0.03891]
[1762611860800,0.57329159,101790.0,101780.0,0.05982]
[1762611861303,0.57329159,101790.0,101780.0,0.05782]
[1762611862813,0.0982957,101780.0,101770.0,0.05871]
[1762611862996,0.4590957,101780.0,101770.0,0.20694081]
[1762611863197,0.57252667,101780.0,101770.0,0.30524611]
[1762611863604,0.21172667,101780.0,101770.0,0.30524611]
[1762611863812,0.57252667,101780.0,101770.0,0.30524611]
[1762611863997,0.57252667,101780.0,101770.0,0.30624611]
[1762611864202,0.21172667,101780.0,101770.0,0.30624611]
[1762611864404,0.21172667,101780.0,101770.0,0.39519032]
[1762611864607,0.21172667,101780.0,101770.0,0.75599032]
[1762611864809,0.21172667,101780.0,101770.0,0.75699032]
[1762611865004,0.21172667,101780.0,101770.0,0.75599032]
[1762611865209,0.21172667,101780.0,101770.0,0.75899032]
[1762611865404,0.57252667,101780.0,101770.0,0.29888502]
[1762611865607,0.57252667,101780.0,101770.0,0.30188502]
[1762611866016,0.57252667,101780.0,101770.0,0.18329751]
[1762611866419,0.57252667,101780.0,101770.0,0.28160281]
[1762611867214,0.21172667,101780.0,101770.0,0.40019032]
[1762611867416,0.0982957,101780.0,101770.0,0.40019032]
[1762611868908,0.0982957,101780.0,101770.0,0.18329751]
[1762611869109,0.0982957,101780.0,101770.0,0.28160281]
[1762611869913,0.0982957,101780.0,101770.0,0.64240281]
[1762611870119,0.0982957,101780.0,101770.0,0.66881436]
[1762611870311,0.0982957,101780.0,101770.0,0.78740187]
[1762611874128,0.0982957,101780.0,101770.0,0.79635283]
[1762611875216,0.0983053,101770.0,101760.0,0.07150958]
[1762611875411,0.61276617,101770.0,101760.0,0.01292702]
[1762611875613,0.77511263,101770.0,101760.0,0.01292702]
[1762611875827,0.72216764,101770.0,101760.0,0.01292702]
[1762611876118,0.72216764,101770.0,101760.0,0.00014702]
[1762611876319,0.60358013,101770.0,101760.0,0.00014702]
[1762611876512,0.60358013,101770.0,101760.0,0.00414702]
[1762611876713,0.60358013,101770.0,101760.0,0.00514702]
[1762611877713,0.60358013,101770.0,101760.0,0.00114702]
[1762611877912,0.60358013,101770.0,101760.0,0.00214702]
[1762611879423,0.60358013,101770.0,101760.0,0.01540702]
[1762611881618,0.60358013,101770.0,101760.0,0.06003702]
[1762611882216,0.56850677,101770.0,101760.0,0.06003702]
[1762611883821,0.56850677,101770.0,101760.0,0.17870001]
[1762611887720,0.56850677,101770.0,101760.0,0.06003702]
[1762611890128,0.68716976,101770.0,101760.0,0.00214702]
[1762611890329,0.60358013,101770.0,101760.0,0.00214702]
[1762611891525,0.60358013,101770.0,101760.0,2e-08]
[1762611891718,0.65652512,101770.0,101760.0,2e-08]
[1762611893919,0.77518811,101770.0,101760.0,2e-08]
[1762611894126,0.74011475,101770.0,101760.0,2e-08]
[1762611894326,0.88661191,101770.0,101760.0,2e-08]
[1762611896633,0.76794892,101770.0,101760.0,2e-08]
[1762611896835,0.88661191,101770.0,101760.0,2e-08]
[1762611897534,0.76794892,101770.0,101760.0,2e-08]
[1762611898030,0.88661191,101770.0,101760.0,2e-08]
[1762611902133,0.0983151,101760.0,101750.0,0.00014702]
[1762611902335,0.0983247,101750.0,101740.0,0.00011816]
[1762611902534,0.49414481,101750.0,101740.0,0.01395816]
[1762611902725,0.80684836,101750.0,101740.0,0.05810816]
[1762611902925,0.66003943,101750.0,101740.0,0.17677115]
[1762611903640,0.60709444,101750.0,101740.0,0.17677115]
[1762611903827,0.57207433,101750.0,101740.0,0.17677115]
[1762611904033,0.11294963,101750.0,101740.0,0.27510555]
[1762611904240,0.49414311,101760.0,101750.0,0.05799]
[1762611904540,0.56472534,101760.0,101750.0,0.27497769]
[1762611904731,0.56472534,101760.0,101750.0,0.17865299]
[1762611904927,0.59974545,101760.0,101750.0,0.05999]
[1762611905332,0.59974545,101760.0,101750.0,0.17865299]
[1762611905842,0.56472534,101760.0,101750.0,0.17965299]
[1762611906026,0.46640234,101760.0,101750.0,0.27797779]
[1762611906232,0.56471744,101760.0,101750.0,0.27797779]
[1762611906933,0.56471744,101760.0,101750.0,0.17965299]
[1762611907437,0.46640234,101760.0,101750.0,0.27797789]
[1762611908245,0.10560234,101760.0,101750.0,1.23877789]
[1762611909433,0.45925262,101770.0,101760.0,0.1563053]
[1762611909637,0.36094702,101770.0,101760.0,0.27496829]
[1762611909940,0.47128231,101770.0,101760.0,0.27496829]
[1762611910442,0.11048231,101770.0,101760.0,0.27496829]
[1762611910646,0.11048231,101770.0,101760.0,0.39363128]
[1762611910846,0.11048231,101770.0,101760.0,0.39463128]
[1762611911541,0.00014702,101770.0,101760.0,0.39463128]
[1762611911843,0.4487651,101800.0,101790.0,0.05799]
[1762611912043,0.547048,101800.0,101790.0,0.17665299]
[1762611912241,0.60280497,101800.0,101790.0,0.17665299]
[1762611912441,0.56778486,101800.0,101790.0,0.05799]
[1762611913340,0.56878486,101800.0,101790.0,0.05799]
[1762611914948,0.56878486,101800.0,101790.0,0.1562765]
[1762611915149,0.56878486,101800.0,101790.0,0.05799]
[1762611923147,0.56878486,101800.0,101790.0,0.1562767]
[1762611923352,0.56878486,101800.0,101790.0,0.05799]
[1762611924046,0.56878486,101800.0,101790.0,0.1562767]
[1762611924245,0.47050196,101800.0,101790.0,0.1562767]
[1762611924452,0.56877906,101800.0,101790.0,0.1562767]
[1762611924647,0.47050196,101800.0,101790.0,0.1562767]
[1762611924955,0.10970196,101800.0,101790.0,0.4046823]
[1762611925552,0.10870196,101800.0,101790.0,0.4056823]
[1762611926452,0.20697906,101800.0,101790.0,0.1572767]
[1762611926845,0.10870196,101800.0,101790.0,0.1572767]
[1762611927243,0.10870196,101800.0,101790.0,0.1562767]
[1762611927455,0.10870196,101800.0,101790.0,0.1572767]
[1762611928062,0.20697906,101800.0,101790.0,0.1572767]
[1762611929556,0.20697906,101800.0,101790.0,0.4056823]
[1762611929953,0.10870196,101800.0,101790.0,0.4056823]
[1762611930260,0.37090206,101810.0,101800.0,0.1565171]
[1762611930560,0.47761942,101810.0,101800.0,0.4049227]
[1762611931356,0.57588682,101810.0,101800.0,0.4049227]
[1762611932157,0.57788682,101810.0,101800.0,0.4049227]
[1762611932359,0.57788682,101810.0,101800.0,0.27503047]
[1762611933154,0.57588682,101810.0,101800.0,0.27503047]
[1762611933458,0.37090206,101810.0,101800.0,0.27603047]
[1762611935259,0.01010206,101810.0,101800.0,0.63683047]
[1762611935867,0.00014702,101810.0,101800.0,0.63683047]
[1762611936060,0.3608,101820.0,101810.0,0.1565075]
[1762611936249,0.3608,101820.0,101810.0,0.27502087]
[1762611936451,0.46313724,101820.0,101810.0,0.27502087]
[1762611937355,0.47308676,101820.0,101810.0,0.27502087]
[1762611937651,0.57134456,101820.0,101810.0,0.27502087]
[1762611938459,0.57134456,101820.0,101810.0,0.27500807]
[1762611938661,0.57334456,101820.0,101810.0,0.27500807]
[1762611939854,0.57334466,101820.0,101810.0,0.27500807]
[1762611940161,0.57334466,101820.0,101810.0,0.39350864]
[1762611940566,0.57334466,101820.0,101810.0,0.27500807]
[1762611940753,0.57334466,101820.0,101810.0,0.17674057]
[1762611940953,0.57334466,101820.0,101810.0,0.27500807]
[1762611942153,0.57334466,101820.0,101810.0,0.17674057]
[1762611943165,0.57334466,101820.0,101810.0,0.27500817]
[1762611943375,0.57334466,101820.0,101810.0,0.17674057]
[1762611943557,0.57334466,101820.0,101810.0,0.17513057]
[1762611944462,0.57334466,101820.0,101810.0,0.27339817]
[1762611945653,0.47508676,101820.0,101810.0,0.39189874]
[1762611946162,0.0982676,101810.0,101800.0,0.17419759]
[1762611946352,0.4590676,101810.0,101800.0,0.17419759]
[1762611946553,0.5614964,101810.0,101800.0,0.17419759]
[1762611946951,0.59651651,101810.0,101800.0,0.17419759]
[1762611947762,0.59651651,101810.0,101800.0,0.17519759]
[1762611947960,0.59651651,101810.0,101800.0,0.05669702]
[1762611948265,0.2006964,101810.0,101800.0,0.29369816]
[1762611948454,0.5614964,101810.0,101800.0,0.39197546]
[1762611948661,0.2006964,101810.0,101800.0,0.39197546]
[1762611948965,0.1024288,101810.0,101800.0,0.39197546]
[1762611949258,0.4632288,101810.0,101800.0,0.39197546]
[1762611949655,0.4632288,101810.0,101800.0,0.15397432]
[1762611949855,0.5614964,101810.0,101800.0,0.39097546]
[1762611950256,0.1024288,101810.0,101800.0,0.39097546]
[1762611950567,0.5614964,101810.0,101800.0,0.39197546]
[1762611952252,0.4632288,101810.0,101800.0,0.39197546]
[1762611952456,0.1024288,101810.0,101800.0,0.39197546]
[1762611952867,0.2006965,101810.0,101800.0,0.39197546]
[1762611953166,0.5614965,101810.0,101800.0,0.39197546]
[1762611953554,0.1024288,101810.0,101800.0,0.75277546]
[1762611953756,0.1024288,101810.0,101800.0,0.77923832]
[1762611954165,0.07883086,101810.0,101800.0,0.75277546]
[1762611954467,0.07883086,101810.0,101800.0,0.77923832]
[1762611955061,0.17709866,101810.0,101800.0,0.77923832]
[1762611955953,0.53789866,101810.0,101800.0,0.39197546]
[1762611956363,0.53789866,101810.0,101800.0,0.29369816]
[1762611956962,0.53789866,101810.0,101800.0,0.39197556]
[1762611957354,0.07883086,101810.0,101800.0,0.41848139]
[1762611957559,0.50403293,101820.0,101810.0,0.156148]
[1762611957863,0.24564558,101820.0,101810.0,0.27464857]
[1762611958062,0.60644558,101820.0,101810.0,0.27464857]
[1762611958461,0.60644558,101820.0,101810.0,0.156148]
[1762611958661,0.60644558,101820.0,101810.0,0.27464857]
[1762611959370,0.60844558,101820.0,101810.0,0.27464857]
[1762611960574,0.60844558,101820.0,101810.0,0.17638057]
[1762611961071,0.60844558,101820.0,101810.0,0.05788]
[1762611961271,0.60844558,101820.0,101810.0,0.17638057]
[1762611961771,0.60844558,101820.0,101810.0,0.27464867]
[1762611961969,0.51018228,101820.0,101810.0,0.27464867]
[1762611962173,0.14938228,101820.0,101810.0,0.27464867]
[1762611962465,0.57342067,101820.0,101810.0,0.17638057]
[1762611962678,0.60844078,101820.0,101810.0,0.05788]
[1762611963065,0.60844078,101820.0,101810.0,0.17638057]
[1762611963370,0.60844078,101820.0,101810.0,0.17738057]
[1762611963565,0.72494135,101820.0,101810.0,0.05888]
[1762611963765,0.62436566,101820.0,101810.0,0.17738057]
[1762611964073,0.65948909,101820.0,101810.0,0.17738057]
[1762611964268,0.65948909,101820.0,101810.0,0.27564877]
[1762611965473,0.66148909,101820.0,101810.0,0.27564877]
[1762611966176,0.6085441,101820.0,101810.0,0.27564877]
[1762611966369,0.6085441,101820.0,101810.0,0.27464877]
[1762611968064,0.6085441,101820.0,101810.0,0.17638057]
[1762611968674,0.66148909,101820.0,101810.0,0.17638057]
[1762611969168,0.77998966,101820.0,101810.0,0.17638057]
[1762611969367,0.66148909,101820.0,101810.0,0.17638057]
[1762611969667,0.77998966,101820.0,101810.0,0.17638057]
[1762611969869,0.74486623,101820.0,101810.0,0.17638057]
[1762611970065,0.74486623,101820.0,101800.0,0.13164759]
[1762611970269,0.66563589,101810.0,101800.0,0.00014702]
[1762611970570,0.73329212,101810.0,101800.0,0.00014702]
[1762611970769,0.0982877,101790.0,101780.0,0.20301184]
[1762611971071,0.71548068,101790.0,101780.0,0.17650057]
[1762611971875,0.71548068,101790.0,101780.0,0.058]
[1762611972080,0.59698011,101790.0,101780.0,0.17650057]
[1762611972372,0.59698011,101790.0,101780.0,0.27479797]
[1762611972775,0.49434407,101800.0,101790.0,0.0982877]
[1762611972968,0.09842512,101800.0,101790.0,0.27466827]
[1762611973169,0.2009766,101800.0,101790.0,0.27466827]
[1762611973569,0.5617766,101800.0,101790.0,0.27466827]
[1762611973774,0.5617766,101800.0,101790.0,0.17638057]
[1762611974372,0.5617766,101800.0,101790.0,0.05788]
[1762611974576,0.0982877,101790.0,101780.0,0.01584]
[1762611974770,0.57758827,101790.0,101780.0,0.004]
[1762611974970,0.72195558,101790.0,101780.0,0.004]
[1762611975575,0.0982973,101780.0,101770.0,0.17652759]
[1762611975878,0.56134419,101780.0,101770.0,0.17652759]
[1762611976063,0.56134419,101780.0,101770.0,0.05802702]
[1762611976268,0.56134419,101780.0,101770.0,0.17652759]
[1762611976471,0.67984476,101780.0,101770.0,0.00014702]
[1762611976874,0.56134419,101780.0,101770.0,0.17652759]
[1762611977475,0.56134419,101780.0,101770.0,0.17952759]
[1762611977777,0.56134419,101780.0,101770.0,0.18252759]
[1762611978579,0.67984476,101780.0,101770.0,0.04094702]
[1762611978880,0.67984476,101780.0,101770.0,0.01986702]
[1762611979079,0.56134419,101780.0,101770.0,0.04094702]
[1762611979376,0.67984476,101780.0,101770.0,0.00614702]
[1762611980379,0.67984476,101780.0,101770.0,0.06402702]
[1762611982178,0.56134419,101780.0,101770.0,0.28083469]
[1762611982570,0.56134429,101780.0,101770.0,0.28083469]
[1762611982769,0.56134429,101780.0,101770.0,0.16233412]
[1762611982972,0.56134429,101780.0,101770.0,0.28083469]
[1762611986174,0.46304689,101780.0,101770.0,0.28083469]
[1762611986377,0.46304689,101780.0,101770.0,0.39933526]
[1762611986576,0.3608,101790.0,101780.0,0.0982974]
[1762611986880,0.4590877,101790.0,101780.0,0.39093854]
[1762611987082,0.56245518,101790.0,101780.0,0.17414057]
[1762611988078,0.56245518,101790.0,101780.0,0.17614057]
[1762611988267,0.56245518,101790.0,101780.0,0.05764]
[1762611988681,0.56245518,101790.0,101780.0,0.1559374]
[1762611988984,0.56245518,101790.0,101780.0,0.1579374]
[1762611989183,0.56245518,101790.0,101780.0,0.05964]
[1762611991486,0.55750342,101800.0,101790.0,0.1542877]
[1762611991487,0.36094702,101800.0,101790.0,0.1542877]
[1762611991672,0.45922512,101800.0,101790.0,0.30252453]
[1762611992883,0.45922512,101800.0,101790.0,0.057]
[1762611993187,0.45922512,101800.0,101790.0,0.1552877]
[1762611994286,0.36094702,101800.0,101790.0,0.30352453]
[1762611995577,0.00014702,101800.0,101790.0,0.30352453]
[1762611995892,0.00014702,101800.0,101790.0,0.66432453]
[1762611996083,0.00014702,101800.0,101790.0,0.56603683]
[1762611996289,0.56949191,101800.0,101790.0,0.057]
[1762611996587,0.56949191,101800.0,101790.0,0.03518]
[1762611996787,0.56949191,101800.0,101790.0,0.001]
[1762611997180,0.60460616,101800.0,101790.0,0.001]
[1762611999294,0.65727753,101800.0,101790.0,0.001]
[1762611999791,0.60460616,101800.0,101790.0,0.001]
[1762612000189,0.65727753,101800.0,101790.0,0.001]
[1762612002487,0.60460616,101800.0,101790.0,0.001]
[1762612003285,0.65727753,101800.0,101790.0,0.001]
[1762612004289,0.65727753,101800.0,101790.0,0.01403]
[1762612004597,0.60460616,101800.0,101790.0,0.03528]
[1762612005390,0.60460616,101800.0,101790.0,0.1548977]
[1762612005792,0.56949191,101800.0,101790.0,0.4033996]
[1762612006294,0.20869191,101800.0,101790.0,0.4033996]
[1762612006496,0.56949191,101800.0,101790.0,0.4033996]
[1762612006696,0.20869191,101800.0,101790.0,0.4033996]
[1762612008798,0.09842512,101800.0,101790.0,0.4033996]
[1762612009294,0.00014702,101800.0,101790.0,0.4033996]
[1762612009499,0.09842502,101800.0,101790.0,0.4033996]
[1762612010001,0.00014702,101800.0,101790.0,0.7641996]
[1762612010197,0.09842502,101800.0,101790.0,0.4033996]
[1762612010394,0.45922502,101800.0,101790.0,0.4033996]
[1762612010599,0.09842502,101800.0,101790.0,0.4033996]
[1762612011692,0.00014702,101800.0,101790.0,0.7641996]
[1762612011997,0.09842502,101800.0,101790.0,0.4033996]
[1762612012302,0.09842502,101800.0,101790.0,0.79065426]
[1762612012802,0.09842502,101800.0,101790.0,0.42985426]
[1762612013691,0.00014702,101800.0,101790.0,0.4033996]
[1762612014698,0.09842512,101800.0,101790.0,0.4033996]
[1762612015202,0.00014702,101800.0,101790.0,0.4033996]
[1762612015898,0.09842512,101800.0,101790.0,0.1548977]
[1762612016098,0.09842512,101800.0,101790.0,0.4033996]
[1762612017801,0.00014702,101800.0,101790.0,0.4033996]
[1762612018002,0.00014702,101800.0,101790.0,0.79065426]
[1762612019094,0.50412957,101820.0,101810.0,0.04464]
[1762612019299,0.46901532,101820.0,101810.0,0.1562685]
[1762612019497,0.57406632,101820.0,101810.0,0.1562685]
[1762612020391,0.57606632,101820.0,101810.0,0.1562685]
[1762612021100,0.57606632,101820.0,101810.0,0.058]
[1762612021304,0.57806632,101820.0,101810.0,0.1562685]
[1762612022409,0.57805942,101820.0,101810.0,0.1562685]
[1762612023000,0.21725942,101820.0,101810.0,0.1562685]
[1762612023199,0.11900052,101820.0,101810.0,0.1562685]
[1762612023407,0.0982685,101810.0,101800.0,0.05814702]
[1762612023704,0.56840963,101810.0,101800.0,0.05814702]
[1762612024204,1.25619525,101810.0,101800.0,0.00014702]
[1762612024401,1.50469715,101810.0,101800.0,0.00014702]
[1762612024602,0.0982778,101800.0,101790.0,0.01303]
[1762612024804,0.49419205,101800.0,101790.0,0.01303]
[1762612025114,0.59717485,101800.0,101790.0,0.01303]
[1762612025310,0.59717485,101800.0,101790.0,0.03492]
[1762612026502,0.59717485,101800.0,101790.0,0.05767]
[1762612026702,0.59717485,101800.0,101790.0,0.1559578]
[1762612026908,0.5640606,101800.0,101790.0,0.1559578]
[1762612027109,0.4610778,101800.0,101790.0,0.1559578]
[1762612027308,0.3648,101800.0,101790.0,0.1559578]
[1762612027502,0.004,101800.0,101790.0,0.1559578]
[1762612028404,0.002,101800.0,101790.0,0.18242229]
[1762612029409,0.45921722,101810.0,101800.0,0.1562782]
[1762612029909,0.5624166,101810.0,101800.0,0.1562782]
[1762612030409,0.2016166,101810.0,101800.0,0.1562782]
[1762612030610,0.5664166,101810.0,101800.0,0.1562782]
[1762612031003,0.4681464,101810.0,101800.0,0.1562782]
[1762612031203,0.5664149,101810.0,101800.0,0.1562782]
[1762612031403,0.5664149,101810.0,101800.0,0.058]
[1762612031612,0.5664149,101810.0,101800.0,0.1562782]
[1762612033103,0.4681464,101810.0,101800.0,0.1562782]
[1762612033304,0.36494702,101810.0,101800.0,0.4047801]
[1762612033604,0.46321542,101810.0,101800.0,0.4047801]
[1762612033809,0.46321542,101810.0,101800.0,0.43125902]
[1762612036608,0.46321542,101810.0,101800.0,0.43127158]
[1762612037010,0.46321542,101810.0,101800.0,0.08449148]
[1762612037210,0.5713493,101810.0,101800.0,0.18276958]
[1762612037411,0.5713493,101810.0,101800.0,0.058]
[1762612038713,0.5713493,101810.0,101800.0,0.1562782]
[1762612039306,0.5713493,101810.0,101800.0,0.058]
[1762612040921,0.60646355,101810.0,101800.0,0.058]
[1762612042814,0.0982783,101800.0,101790.0,0.03492]
[1762612043007,0.49419255,101800.0,101790.0,0.05767]
[1762612043213,0.60321549,101800.0,101790.0,0.05767]
[1762612044320,0.60421549,101800.0,101790.0,0.05767]
[1762612045312,0.56910124,101800.0,101790.0,0.05767]
[1762612045512,0.56910124,101800.0,101790.0,0.155958]
[1762612047724,0.47082294,101800.0,101790.0,0.155958]
[1762612047924,0.001,101800.0,101790.0,0.155958]
[1762612048227,0.001,101800.0,101790.0,0.18244593]
[1762612048619,0.001,101800.0,101790.0,0.54324593]
[1762612048818,0.0992783,101800.0,101790.0,0.18244593]
[1762612049217,0.0992783,101800.0,101790.0,0.18344593]
[1762612050028,0.0982783,101800.0,101790.0,0.18344593]
[1762612051128,0.0982783,101800.0,101790.0,0.54424593]
[1762612051518,0.0982783,101800.0,101790.0,0.18344593]
[1762612052325,0.0982783,101800.0,101790.0,0.66278537]
[1762612052717,0.0982783,101800.0,101790.0,0.30198537]
[1762612053727,0.4590783,101800.0,101790.0,0.30198537]
[1762612054824,0.45921542,101810.0,101800.0,0.04608]
[1762612055020,0.45921542,101810.0,101800.0,0.17804944]
[1762612055220,0.56744296,101810.0,101800.0,0.17804944]
[1762612056435,0.56744296,101810.0,101800.0,0.27632784]
[1762612056632,0.56844296,101810.0,101800.0,0.27632784]
[1762612057134,0.56844296,101810.0,101800.0,0.27632774]
[1762612060427,0.56844296,101810.0,101800.0,0.39486546]
[1762612061432,0.56844296,101810.0,101800.0,0.08600211]
[1762612061631,0.72209579,101810.0,101800.0,0.05951]
[1762612061826,0.0982784,101800.0,101790.0,0.17764858]
[1762612062032,0.49419265,101800.0,101790.0,0.05911]
[1762612062232,0.60502229,101800.0,101790.0,0.05911]
[1762612062433,0.72356087,101800.0,101790.0,0.05911]
[1762612063040,0.72356087,101800.0,101790.0,0.06011]
[1762612063241,0.60502229,101800.0,101790.0,0.06011]
[1762612064143,0.60502229,101800.0,101790.0,0.03716]
[1762612064339,0.56990804,101800.0,101790.0,0.05827]
[1762612064938,0.57090804,101800.0,101790.0,0.05827]
[1762612065336,0.57090804,101800.0,101790.0,0.03514]
[1762612065541,0.72456087,101800.0,101790.0,0.001]
[1762612065745,0.098288,101790.0,101780.0,0.05581702]
[1762612065938,0.459088,101790.0,101780.0,0.1743556]
[1762612066136,0.56952059,101790.0,101780.0,0.1743556]
[1762612066745,0.56952059,101790.0,101780.0,0.05581702]
[1762612067243,0.60463484,101790.0,101780.0,0.05581702]
[1762612067647,0.60463484,101790.0,101780.0,0.1743556]
[1762612067828,0.60463484,101790.0,101780.0,0.1753556]
[1762612068231,0.72317342,101790.0,101780.0,0.00114702]
[1762612068438,0.72417342,101790.0,101780.0,0.00114702]
[1762612068928,0.72417342,101790.0,101780.0,0.00014702]
[1762612069134,1.06557342,101790.0,101780.0,0.00014702]
[1762612069639,1.08313054,101790.0,101780.0,0.00014702]
[1762612069843,1.11809446,101790.0,101780.0,0.00014702]
[1762612073647,1.06542309,101790.0,101780.0,0.00014702]
[1762612075639,0.60698017,101810.0,101780.0,0.36094702]
[1762612076044,0.86743199,101810.0,101780.0,0.36094702]
[1762612077251,0.86843199,101810.0,101780.0,0.36094702]
[1762612078150,0.86843199,101810.0,101780.0,0.39725702]
[1762612078548,0.86843199,101810.0,101780.0,0.41869702]
[1762612079942,0.79798734,101810.0,101790.0,0.41855]
[1762612080144,0.21317204,101810.0,101800.0,0.41855]
[1762612081347,0.21517204,101810.0,101800.0,0.41855]
[1762612081756,0.21717204,101810.0,101800.0,0.39711]
[1762612081950,0.21717204,101810.0,101800.0,0.37423]
[1762612082146,0.21717204,101810.0,101800.0,0.01343]
[1762612082354,0.21717204,101810.0,101790.0,0.41855]
[1762612082560,0.21817204,101810.0,101800.0,0.3608]
[1762612082851,0.21817204,101810.0,101800.0,0.39711]
[1762612083056,0.21817204,101810.0,101800.0,0.41855]
[1762612083460,0.21517204,101810.0,101800.0,0.41855]
[1762612083655,0.21717204,101810.0,101800.0,0.41855]
[1762612084254,0.21817204,101810.0,101800.0,0.41855]
[1762612084455,0.21717204,101810.0,101800.0,0.41855]
[1762612084649,0.21717204,101810.0,101800.0,0.39711]
[1762612085247,0.21817204,101810.0,101800.0,0.39711]
[1762612086368,0.21817204,101810.0,101800.0,0.41855]
[1762612089468,0.46900862,101820.0,101800.0,0.41855]
[1762612089769,0.72153269,101820.0,101810.0,0.05775]
[1762612090075,0.21328275,101820.0,101810.0,0.41855]
[1762612090964,0.21728275,101820.0,101810.0,0.41855]
[1762612091372,0.21928275,101820.0,101810.0,0.41855]
[1762612092264,0.22128275,101820.0,101810.0,0.41855]
[1762612095576,0.27377879,101820.0,101810.0,0.41855]
[1762612098079,0.16557017,101820.0,101810.0,0.41855]
[1762612098979,0.17563439,101820.0,101810.0,0.41855]
[1762612099672,0.12313835,101820.0,101810.0,0.41855]
[1762612100276,0.12313835,101820.0,101810.0,0.5168191]
[1762612103480,0.12313835,101820.0,101810.0,0.1560191]
[1762612103682,0.12313835,101820.0,101810.0,0.8776191]
[1762612104180,0.12313835,101820.0,101810.0,0.77935]
[1762612104485,0.12313835,101820.0,101810.0,0.877619]
[1762612104980,0.50917081,101850.0,101830.0,0.05775]
[1762612105284,0.20432465,101840.0,101830.0,0.04432]
[1762612105483,0.13388,101840.0,101830.0,0.04432]
[1762612105782,0.39013753,101840.0,101830.0,0.04432]
[1762612106279,0.46058218,101840.0,101830.0,0.04432]
[1762612106480,0.47065766,101840.0,101830.0,0.04432]
[1762612106975,0.47065766,101840.0,101830.0,0.04732]
[1762612107282,0.83145766,101840.0,101830.0,0.005]
[1762612108082,0.83145766,101840.0,101830.0,0.13592]
[1762612108083,0.70257766,101840.0,101830.0,0.13592]
[1762612108581,0.63213301,101840.0,101830.0,0.13592]
[1762612109173,0.72001616,101840.0,101830.0,0.13592]